fUST/lending_fUST_20250422
["ID","MTS","AMOUNT","RATE_DAILY","PERIOD"]
[358622903,1745315461196,-151.0,0.00024657,7]
[358622904,1745315461205,-1608.99,0.00024657,2]
[358622905,1745315461215,-500.0,0.00024657,2]
[358622906,1745315461224,-687.33,0.00024657,2]
[358622907,1745315461234,-649.16,0.00024657,2]
[358622908,1745315461243,-500.0,0.00024657,2]
[358622909,1745315461253,-603.39,0.00024657,2]
[358622910,1745315461262,-500.0,0.00024657,2]
[358622911,1745315461272,-1604.6,0.00024657,2]
[358622912,1745315461282,-1370.17,0.00024657,2]
[358622913,1745315461292,-500.0,0.00024657,2]
[358622914,1745315461301,-500.0,0.00024657,2]
[358622915,1745315461311,-500.0,0.00024657,2]
[358622916,1745315461320,-4013.43,0.00024657,2]
[358622917,1745315461330,-3088.29,0.00024657,2]
[358622918,1745315461339,-572.7,0.00024657,2]
[358622919,1745315461349,-753.24,0.00024657,2]
[358622920,1745315461358,-500.0,0.00024657,2]
[358622921,1745315461367,-500.0,0.00024657,2]
[358622922,1745315461377,-500.0,0.00024658,2]
[358622923,1745315461387,-274.86318937,0.00024658,2]
[358622924,1745315461397,-500.0,0.00024691,2]
[358622925,1745315461406,-151.0,0.000248,7]
[358622926,1745315461416,-153.0,0.00024822,2]
[358622927,1745315461426,-318.4057125,0.00024822,2]
[358622928,1745315461436,-566.3756473,0.00024822,2]
[358622929,1745315461446,-566.3756473,0.00024822,2]
[358622930,1745315461455,-566.3756473,0.00024822,2]
[358622931,1745315461465,-558.48675979,0.00024848,2]
[358622932,1745315461475,-1524.06619891,0.00024862,2]
[358622933,1745315461486,-1524.06619891,0.00024866,2]
[358622934,1745315461495,-500.0,0.00024873,2]
[358622935,1745315461505,-500.43772971,0.00024873,2]
[358622936,1745315461514,-500.56520331,0.00024873,2]
[358622937,1745315461524,-500.0,0.00024873,2]
[358622938,1745315461533,-160.38912403,0.00024873,2]
[358622939,1745315461543,-500.0,0.00024873,2]
[358622940,1745315461553,-500.0,0.00024873,2]
[358622941,1745315461564,-500.0,0.00024873,2]
[358622942,1745315461574,-501.08459409,0.00024873,2]
[358622943,1745315461583,-500.1921105,0.00024873,2]
[358622944,1745315461593,-500.53146477,0.00024873,2]
[358622945,1745315461602,-500.32672605,0.00024873,2]
[358622946,1745315461611,-500.34350252,0.00024873,2]
[358622947,1745315461622,-500.0,0.00024873,2]
[358622948,1745315461633,-616.77597092,0.00024873,2]
[358622949,1745315461643,-500.0,0.00024873,2]
[358622950,1745315461653,-500.39583393,0.00024873,2]
[358622951,1745315461662,-500.80456186,0.00024873,2]
[358622952,1745315461672,-500.54036793,0.00024873,2]
[358622953,1745315461681,-500.0,0.00024873,2]
[358622954,1745315461691,-500.0,0.00024873,2]
[358622955,1745315461700,-436.61925767,0.00024873,2]
[358622956,1745315461710,-501.13328607,0.00024873,2]
[358622957,1745315461719,-204.8823843,0.00024873,2]
[358622958,1745315461729,-500.38008978,0.00024873,2]
[358622959,1745315461739,-502.60583245,0.00024873,2]
[358622960,1745315461749,-501.0883213,0.00024873,2]
[358622961,1745315461759,-1773.8990103,0.0002488,3]
[358622962,1745315461769,-420.73667954,0.0002488,3]
[358622963,1745315461780,-729.16666667,0.0002488,3]
[358622964,1745315461790,-160.0,0.0002488,3]
[358622965,1745315461800,-2296.97646602,0.0002488,2]
[358622966,1745315462059,-500.0,0.00021917,2]
[358622967,1745315462070,-500.0,0.00022191,2]
[358622968,1745315462080,-500.0,0.00022465,2]
[358622969,1745315462090,-500.0,0.00022739,2]
[358622970,1745315462099,-35.81223904,0.00023013,2]
[358622971,1745315462214,-453.92953052,0.00023013,2]
[358622972,1745315462226,-10.25823044,0.00023013,2]
[358622973,1745315462237,-500.0,0.00023287,2]
[358622974,1745315462246,-500.0,0.00023561,2]
[358622975,1745315462255,-500.0,0.00023835,2]
[358622976,1745315462265,-500.0,0.00024109,2]
[358622977,1745315462276,-500.0,0.00024383,2]
[358622978,1745315462285,-500.0,0.00024657,2]
[358622979,1745315462294,-6462.22390392,0.0002488,2]
[358622980,1745315462685,-500.0,0.00021917,2]
[358622981,1745315462695,-690.90108284,0.0002488,2]
[358622982,1745315462708,-5474.40891511,0.0002488,2]
[358622983,1745315462720,-299.40146952,0.0002488,2]
[358622984,1745315462735,-6202.60830331,0.0002488,2]
[358622985,1745315462747,-2695.42900989,0.0002488,2]
[358622986,1745315462758,-753.5,0.0002488,2]
[358622987,1745315475024,250.0,0.00019924,2]
[358622989,1745315866566,1802.6964015,0.00019928,2]
[358622991,1745316012296,47721.61694356,0.0002,2]
[358622993,1745316373923,159.51838104,0.000189,2]
[358622994,1745316458280,1000.0,0.00019884,2]
[358622995,1745316505400,5000.0,0.0002,2]
[358623005,1745316626674,14175.9343084,0.00019884,2]
[358623006,1745316629222,199.97216251,0.00020002,2]
[358623032,1745316632212,-3617.44109565,0.00020101,2]
[358623038,1745316632268,-312.06246489,0.00020101,2]
[358623069,1745316638376,-48173.59671946,0.00020101,2]
[358623070,1745316638387,-251.425028,0.00020103,2]
[358623072,1745316638397,-333.01870165,0.00020232,2]
[358623073,1745316638409,-250.0,0.00020332,2]
[358623075,1745316638420,-2180.88236715,0.00021002,2]
[358623077,1745316638430,-300.0,0.00021101,2]
[358623078,1745316638440,-1200.0,0.00021101,2]
[358623080,1745316638450,-500.0,0.00021101,2]
[358623081,1745316638460,-500.0,0.00021101,2]
[358623083,1745316638470,-354.86920079,0.00021101,2]
[358623085,1745316638480,-36207.46630272,0.00021102,2]
[358623086,1745316638492,-157.86,0.00021102,2]
[358623088,1745316638503,-50000.0,0.00021102,2]
[358623090,1745316638513,-248.56879843,0.00021103,2]
[358623091,1745316638523,-500.0,0.00021103,2]
[358623093,1745316638533,-218.56754616,0.00021103,2]
[358623095,1745316638542,-242.67352192,0.00021103,2]
[358623097,1745316638552,-4125.1971403,0.00021103,2]
[358623099,1745316638563,-370000.0,0.00021104,2]
[358623101,1745316638573,-160.0,0.00021104,2]
[358623103,1745316638583,-229.05306563,0.00021203,2]
[358623105,1745316638593,-500.89627065,0.0002122,2]
[358623107,1745316638603,-500.0,0.00021917,2]
[358623108,1745316638612,-537.55826873,0.00021917,2]
[358623109,1745316638622,-500.0,0.00021917,2]
[358623110,1745316638633,-500.0,0.00021917,2]
[358623112,1745316638642,-500.0,0.00021917,2]
[358623113,1745316638652,-500.0,0.00021917,2]
[358623115,1745316638661,-500.0,0.00021917,2]
[358623117,1745316638671,-500.0,0.00021917,2]
[358623118,1745316638681,-776.83,0.00021917,2]
[358623120,1745316638691,-500.0,0.00021917,2]
[358623122,1745316638700,-881.43,0.00021917,2]
[358623123,1745316638710,-500.0,0.00021917,2]
[358623125,1745316638720,-500.0,0.00021917,2]
[358623126,1745316638730,-500.0,0.00021917,2]
[358623128,1745316638740,-500.0,0.00021917,2]
[358623130,1745316638750,-500.0,0.00021917,2]
[358623131,1745316638760,-500.0,0.00021917,2]
[358623133,1745316638775,-586.6,0.00021917,2]
[358623135,1745316638785,-500.0,0.00021917,2]
[358623136,1745316638796,-500.0,0.00021917,2]
[358623138,1745316638806,-500.0,0.00021917,2]
[358623140,1745316638816,-500.0,0.00021917,2]
[358623141,1745316638827,-500.0,0.00021917,2]
[358623143,1745316638837,-500.0,0.00021917,2]
[358623145,1745316638847,-500.0,0.00021917,2]
[358623146,1745316638857,-504.98619837,0.00021917,2]
[358623148,1745316638866,-500.0,0.00021917,2]
[358623149,1745316638876,-715.14,0.00021917,2]
[358623151,1745316638886,-506.44946979,0.00021917,2]
[358623153,1745316638896,-500.0,0.00021917,2]
[358623154,1745316638906,-641.87,0.00021917,2]
[358623156,1745316638916,-839.16,0.00021917,2]
[358623158,1745316638926,-500.0,0.00021917,2]
[358623159,1745316638936,-631.79,0.00021917,2]
[358623161,1745316638946,-577.95589471,0.00021917,2]
[358623163,1745316638956,-500.0,0.00021917,2]
[358623164,1745316638966,-500.0,0.00021917,2]
[358623165,1745316638976,-500.0,0.00021917,2]
[358623167,1745316638986,-500.0,0.00021917,2]
[358623169,1745316638996,-634.56,0.00021917,2]
[358623170,1745316639006,-500.0,0.00021917,2]
[358623172,1745316639016,-500.0,0.00021917,2]
[358623174,1745316639026,-500.0,0.00021917,2]
[358623175,1745316639036,-500.0,0.00021917,2]
[358623177,1745316639045,-1089.37,0.00021917,2]
[358623179,1745316639055,-500.0,0.00021917,2]
[358623180,1745316639065,-500.0,0.00021917,2]
[358623182,1745316639075,-500.0,0.00021917,2]
[358623183,1745316639084,-500.0,0.00021917,2]
[358623185,1745316639094,-507.45988998,0.00021917,2]
[358623187,1745316639104,-500.0,0.00021917,2]
[358623188,1745316639114,-507.00756375,0.00021917,2]
[358623190,1745316639123,-500.0,0.00021917,2]
[358623192,1745316639133,-513.86153909,0.00021917,2]
[358623193,1745316639143,-883.94,0.00021917,2]
[358623195,1745316639152,-500.0,0.00021917,2]
[358623196,1745316639163,-500.0,0.00021917,2]
[358623197,1745316639172,-499.71138307,0.00021917,2]
[358623198,1745316639182,-506.25112529,0.00021917,2]
[358623199,1745316639191,-500.0,0.00021917,2]
[358623200,1745316639201,-503.57523658,0.00021917,2]
[358623202,1745316639210,-519.63479374,0.00021917,2]
[358623203,1745316639221,-504.66195433,0.00021917,2]
[358623204,1745316639231,-500.0,0.00021917,2]
[358623205,1745316639241,-500.0,0.00021917,2]
[358623206,1745316639251,-500.0,0.00021917,2]
[358623208,1745316639261,-504.57483501,0.00021917,2]
[358623209,1745316639271,-500.0,0.00021917,2]
[358623211,1745316639281,-500.0,0.00021917,2]
[358623213,1745316639291,-500.0,0.00021917,2]
[358623214,1745316639302,-500.0,0.00021917,2]
[358623216,1745316639312,-1831.82,0.00021917,2]
[358623218,1745316639322,-480.72509121,0.00021917,2]
[358623220,1745316639333,-500.0,0.00021917,2]
[358623222,1745316639343,-500.0,0.00021917,2]
[358623224,1745316639354,-571.1,0.00021917,2]
[358623226,1745316639363,-500.0,0.00021917,2]
[358623228,1745316639373,-1368.66,0.00021917,2]
[358623230,1745316639385,-500.0,0.00021917,2]
[358623232,1745316639395,-288.21478388,0.00021917,2]
[358623234,1745316639406,-500.0,0.00021917,2]
[358623235,1745316639418,-500.0,0.00021917,2]
[358623236,1745316639427,-500.0,0.00021917,2]
[358623237,1745316639436,-500.0,0.00021917,2]
[358623238,1745316639446,-500.0,0.00021917,2]
[358623239,1745316639457,-487.19780915,0.00021917,2]
[358623240,1745316639467,-500.0,0.00021917,2]
[358623241,1745316639477,-500.0,0.00021917,2]
[358623242,1745316639488,-500.0,0.00021917,2]
[358623243,1745316639498,-500.0,0.00021917,2]
[358623244,1745316639508,-500.0,0.00021917,2]
[358623245,1745316639518,-500.0,0.00021917,2]
[358623246,1745316639527,-500.0,0.00021917,2]
[358623247,1745316639537,-500.0,0.00021917,2]
[358623248,1745316639546,-500.0,0.00021917,2]
[358623249,1745316639556,-908.54,0.00021917,2]
[358623250,1745316639566,-571.01,0.00021917,2]
[358623251,1745316639576,-500.0,0.00021917,2]
[358623252,1745316639586,-500.0,0.00021917,2]
[358623253,1745316639596,-500.0,0.00021917,2]
[358623254,1745316639606,-500.0,0.00021917,2]
[358623255,1745316639615,-500.0,0.00021917,2]
[358623256,1745316639625,-11058.94,0.00021917,2]
[358623257,1745316639635,-500.0,0.00021917,2]
[358623258,1745316639644,-5894.62,0.00021917,2]
[358623259,1745316639654,-500.0,0.00021917,2]
[358623260,1745316639664,-572.52381974,0.00021917,2]
[358623262,1745316639673,-500.0,0.00021917,2]
[358623263,1745316639682,-524.16,0.00021917,2]
[358623264,1745316639692,-597.28,0.00021917,2]
[358623265,1745316639701,-500.0,0.00021917,2]
[358623267,1745316639710,-500.0,0.00021917,2]
[358623269,1745316639722,-500.0,0.00021917,2]
[358623271,1745316639732,-818.84,0.00021917,2]
[358623273,1745316639742,-856.16,0.00021917,2]
[358623275,1745316639751,-500.0,0.00021917,2]
[358623277,1745316639761,-500.0,0.00021917,2]
[358623279,1745316639771,-500.0,0.00021917,2]
[358623281,1745316639780,-609.55,0.00021917,2]
[358623283,1745316639790,-500.0,0.00021917,2]
[358623285,1745316639799,-500.0,0.00021917,2]
[358623287,1745316639809,-500.0,0.00021917,2]
[358623289,1745316639818,-500.0,0.00021917,2]
[358623291,1745316639827,-500.0,0.00021917,2]
[358623293,1745316639837,-500.0,0.00021917,2]
[358623295,1745316639847,-3701.41,0.00021917,2]
[358623297,1745316639856,-500.0,0.00021917,2]
[358623299,1745316639866,-500.0,0.00021917,2]
[358623301,1745316639876,-738.73,0.00021917,2]
[358623303,1745316639886,-717.27,0.00021917,2]
[358623305,1745316639896,-500.0,0.00021917,2]
[358623307,1745316639906,-547.27,0.00021917,2]
[358623309,1745316639916,-624.61,0.00021917,2]
[358623311,1745316639925,-1601.28,0.00021917,2]
[358623313,1745316639935,-740.44,0.00021917,2]
[358623315,1745316639944,-500.0,0.00021917,2]
[358623317,1745316639954,-500.0,0.00021917,2]
[358623319,1745316639964,-500.0,0.00021917,2]
[358623321,1745316639973,-500.0,0.00021917,2]
[358623323,1745316639983,-544.56,0.00021917,2]
[358623325,1745316639993,-515.5,0.00021917,2]
[358623328,1745316640003,-1974.53,0.00021917,2]
[358623330,1745316640013,-500.0,0.00021917,2]
[358623332,1745316640022,-500.0,0.00021917,2]
[358623334,1745316640033,-500.0,0.00021917,2]
[358623336,1745316640042,-797.79,0.00021917,2]
[358623338,1745316640052,-500.0,0.00021917,2]
[358623340,1745316640063,-500.0,0.00021917,2]
[358623342,1745316640072,-620.91,0.00021917,2]
[358623344,1745316640083,-500.0,0.00021917,2]
[358623346,1745316640092,-500.0,0.00021917,2]
[358623348,1745316640102,-4380.88,0.00021917,2]
[358623350,1745316640112,-3211.48,0.00021917,2]
[358623352,1745316640121,-500.0,0.00021917,2]
[358623354,1745316640131,-596.31,0.00021917,2]
[358623356,1745316640141,-500.0,0.00021917,2]
[358623358,1745316640151,-500.0,0.00021917,2]
[358623359,1745316640161,-174.015634,0.00021918,2]
[358623360,1745316640171,-500.0,0.00021918,2]
[358623361,1745316640182,-151.0,0.00021918,2]
[358623362,1745316640192,-166.26911528,0.00021918,2]
[358623363,1745316640202,-500.0,0.00021973,2]
[358623364,1745316640213,-500.0,0.00021973,2]
[358623365,1745316640223,-500.0,0.00021973,2]
[358623366,1745316640233,-500.0,0.00021973,2]
[358623367,1745316640243,-500.0,0.00021973,2]
[358623368,1745316640253,-207.4,0.00022115,2]
[358623369,1745316640263,-500.0,0.00022191,2]
[358623370,1745316640273,-500.0,0.00022191,2]
[358623371,1745316640295,-500.0,0.00022191,2]
[358623372,1745316640306,-776.83,0.00022191,2]
[358623373,1745316640317,-500.0,0.00022191,2]
[358623374,1745316640327,-881.43,0.00022191,2]
[358623375,1745316640336,-429.10572461,0.00022191,2]
[358623376,1745316640347,-500.0,0.00022191,2]
[358623377,1745316640358,-500.0,0.00022191,2]
[358623378,1745316640368,-500.0,0.00022191,2]
[358623379,1745316640378,-500.0,0.00022191,2]
[358623380,1745316640389,-500.0,0.00022191,2]
[358623381,1745316640399,-586.6,0.00022191,2]
[358623382,1745316640414,-500.0,0.00022191,2]
[358623383,1745316640425,-500.0,0.00022191,2]
[358623384,1745316640436,-500.0,0.00022191,2]
[358623385,1745316640447,-500.0,0.00022191,2]
[358623386,1745316640458,-500.0,0.00022191,2]
[358623387,1745316640468,-500.0,0.00022191,2]
[358623389,1745316640477,-500.0,0.00022191,2]
[358623390,1745316640488,-500.0,0.00022191,2]
[358623392,1745316640500,-715.14,0.00022191,2]
[358623393,1745316640510,-227.81,0.00022191,2]
[358623394,1745316640520,-641.87,0.00022191,2]
[358623395,1745316640531,-839.16,0.00022191,2]
[358623396,1745316640542,-500.0,0.00022191,2]
[358623397,1745316640552,-631.79,0.00022191,2]
[358623399,1745316640562,-500.0,0.00022191,2]
[358623400,1745316640572,-500.0,0.00022191,2]
[358623402,1745316640582,-500.0,0.00022191,2]
[358623404,1745316640592,-348.06746641,0.00022191,2]
[358623405,1745316640602,-634.56,0.00022191,2]
[358623407,1745316640612,-500.0,0.00022191,2]
[358623409,1745316640622,-500.0,0.00022191,2]
[358623411,1745316640633,-1089.37,0.00022191,2]
[358623413,1745316640643,-500.0,0.00022191,2]
[358623415,1745316640653,-883.94,0.00022191,2]
[358623416,1745316640663,-500.0,0.00022191,2]
[358623417,1745316640673,-500.0,0.00022191,2]
[358623418,1745316640685,-500.0,0.00022191,2]
[358623420,1745316640889,-500.0,0.00022191,2]
[358623422,1745316640900,-500.0,0.00022191,2]
[358623423,1745316640911,-500.0,0.00022191,2]
[358623424,1745316640921,-1831.82,0.00022191,2]
[358623425,1745316640932,-571.1,0.00022191,2]
[358623426,1745316640943,-1368.66,0.00022191,2]
[358623427,1745316640952,-500.0,0.00022191,2]
[358623428,1745316640962,-500.0,0.00022191,2]
[358623429,1745316640972,-500.0,0.00022191,2]
[358623430,1745316640982,-500.0,0.00022191,2]
[358623431,1745316640993,-500.0,0.00022191,2]
[358623432,1745316641002,-500.0,0.00022191,2]
[358623433,1745316641012,-500.0,0.00022191,2]
[358623434,1745316641021,-154.6940696,0.00022191,2]
[358623435,1745316641031,-500.0,0.00022191,2]
[358623436,1745316641041,-500.0,0.00022191,2]
[358623437,1745316641050,-500.0,0.00022191,2]
[358623438,1745316641060,-500.0,0.00022191,2]
[358623439,1745316641070,-908.54,0.00022191,2]
[358623440,1745316641079,-571.01,0.00022191,2]
[358623441,1745316641089,-500.0,0.00022191,2]
[358623442,1745316641098,-500.0,0.00022191,2]
[358623443,1745316641109,-500.0,0.00022191,2]
[358623444,1745316641118,-500.0,0.00022191,2]
[358623445,1745316641128,-500.0,0.00022191,2]
[358623446,1745316641138,-500.0,0.00022191,2]
[358623447,1745316641147,-11058.94,0.00022191,2]
[358623448,1745316641157,-5894.62,0.00022191,2]
[358623449,1745316641167,-500.0,0.00022191,2]
[358623450,1745316641177,-500.0,0.00022191,2]
[358623451,1745316641187,-524.16,0.00022191,2]
[358623452,1745316641197,-597.28,0.00022191,2]
[358623453,1745316641207,-500.0,0.00022191,2]
[358623454,1745316641217,-500.0,0.00022191,2]
[358623455,1745316641226,-500.0,0.00022191,2]
[358623456,1745316641236,-818.84,0.00022191,2]
[358623457,1745316641245,-856.16,0.00022191,2]
[358623458,1745316641254,-500.0,0.00022191,2]
[358623459,1745316641265,-500.0,0.00022191,2]
[358623460,1745316641274,-500.0,0.00022191,2]
[358623461,1745316641285,-609.55,0.00022191,2]
[358623462,1745316641294,-500.0,0.00022191,2]
[358623463,1745316641304,-500.0,0.00022191,2]
[358623464,1745316641314,-500.0,0.00022191,2]
[358623465,1745316641324,-500.0,0.00022191,2]
[358623466,1745316641335,-500.0,0.00022191,2]
[358623467,1745316641345,-500.0,0.00022191,2]
[358623468,1745316641355,-3701.41,0.00022191,2]
[358623469,1745316641365,-500.0,0.00022191,2]
[358623470,1745316641375,-500.0,0.00022191,2]
[358623471,1745316641386,-738.73,0.00022191,2]
[358623472,1745316641396,-717.27,0.00022191,2]
[358623473,1745316641408,-544.82803621,0.00022191,2]
[358623474,1745316641420,-547.27,0.00022191,2]
[358623475,1745316641430,-624.61,0.00022191,2]
[358623476,1745316641440,-1601.28,0.00022191,2]
[358623477,1745316641450,-740.44,0.00022191,2]
[358623478,1745316641461,-500.0,0.00022191,2]
[358623479,1745316641471,-500.0,0.00022191,2]
[358623480,1745316641482,-500.0,0.00022191,2]
[358623481,1745316641493,-167.34634617,0.00022191,2]
[358623482,1745316641503,-544.56,0.00022191,2]
[358623483,1745316641512,-515.5,0.00022191,2]
[358623484,1745316641522,-1974.53,0.00022191,2]
[358623485,1745316641532,-500.0,0.00022191,2]
[358623486,1745316641542,-389.39386185,0.00022191,2]
[358623487,1745316641552,-270.79524406,0.00022191,2]
[358623488,1745316641562,-797.79,0.00022191,2]
[358623489,1745316641572,-500.0,0.00022191,2]
[358623490,1745316641581,-500.0,0.00022191,2]
[358623491,1745316641591,-620.91,0.00022191,2]
[358623492,1745316641601,-500.0,0.00022191,2]
[358623493,1745316641610,-500.0,0.00022191,2]
[358623494,1745316641620,-4380.88,0.00022191,2]
[358623495,1745316641630,-3211.48,0.00022191,2]
[358623496,1745316641640,-500.0,0.00022191,2]
[358623497,1745316641650,-596.31,0.00022191,2]
[358623498,1745316641660,-500.0,0.00022191,2]
[358623499,1745316641670,-500.0,0.00022191,2]
[358623500,1745316641679,-500.0,0.00022324,2]
[358623501,1745316641689,-500.0,0.00022324,2]
[358623502,1745316641699,-500.0,0.00022371,2]
[358623503,1745316641709,-500.0,0.00022371,2]
[358623504,1745316641719,-544.0,0.00022374,2]
[358623505,1745316641728,-708.0,0.00022374,2]
[358623506,1745316641738,-2248.0,0.00022374,2]
[358623507,1745316641748,-403.0,0.00022374,2]
[358623508,1745316641758,-500.0,0.00022405,2]
[358623509,1745316641768,-500.0,0.00022405,2]
[358623510,1745316641777,-500.0,0.00022405,2]
[358623511,1745316641787,-500.0,0.00022405,2]
[358623512,1745316641796,-500.0,0.00022405,2]
[358623513,1745316641806,-500.0,0.00022405,2]
[358623514,1745316641815,-500.0,0.00022405,2]
[358623515,1745316641824,-500.0,0.00022405,2]
[358623516,1745316641835,-500.0,0.00022405,2]
[358623517,1745316641844,-500.0,0.00022405,2]
[358623518,1745316641854,-300.0,0.00022405,2]
[358623519,1745316641863,-500.0,0.00022405,2]
[358623520,1745316641875,-327.07573544,0.00022405,2]
[358623521,1745316641885,-500.0,0.00022405,2]
[358623522,1745316641895,-500.0,0.00022413,2]
[358623523,1745316641906,-160.0,0.00022444,2]
[358623524,1745316641915,-160.0,0.00022445,2]
[358623525,1745316641925,-729.16666667,0.00022445,2]
[358623526,1745316641934,-420.73667954,0.00022445,2]
[358623527,1745316641944,-160.0,0.00022445,2]
[358623528,1745316641954,-12570.97479393,0.00022445,2]
[358623529,1745316641964,-160.0,0.00022445,2]
[358623530,1745316641973,-160.0,0.00022445,2]
[358623531,1745316641983,-500.0,0.00022465,2]
[358623532,1745316641993,-500.0,0.00022465,2]
[358623533,1745316642003,-776.83,0.00022465,2]
[358623534,1745316642013,-500.0,0.00022465,2]
[358623535,1745316642023,-881.43,0.00022465,2]
[358623536,1745316642032,-500.0,0.00022465,2]
[358623537,1745316642042,-500.0,0.00022465,2]
[358623538,1745316642052,-500.0,0.00022465,2]
[358623539,1745316642061,-500.0,0.00022465,2]
[358623540,1745316642071,-500.0,0.00022465,2]
[358623541,1745316642082,-586.6,0.00022465,2]
[358623542,1745316642092,-500.0,0.00022465,2]
[358623543,1745316642102,-500.0,0.00022465,2]
[358623544,1745316642111,-500.0,0.00022465,2]
[358623545,1745316642121,-500.0,0.00022465,2]
[358623546,1745316642131,-500.0,0.00022465,2]
[358623547,1745316642144,-500.0,0.00022465,2]
[358623548,1745316642156,-500.0,0.00022465,2]
[358623549,1745316642167,-409.65737349,0.00022465,2]
[358623550,1745316642177,-715.14,0.00022465,2]
[358623551,1745316642187,-641.87,0.00022465,2]
[358623552,1745316642197,-839.16,0.00022465,2]
[358623553,1745316642207,-500.0,0.00022465,2]
[358623554,1745316642217,-631.79,0.00022465,2]
[358623555,1745316642227,-500.0,0.00022465,2]
[358623556,1745316642237,-500.0,0.00022465,2]
[358623557,1745316642246,-500.0,0.00022465,2]
[358623558,1745316642256,-634.56,0.00022465,2]
[358623559,1745316642266,-500.0,0.00022465,2]
[358623560,1745316642275,-500.0,0.00022465,2]
[358623561,1745316642285,-1089.37,0.00022465,2]
[358623562,1745316642295,-500.0,0.00022465,2]
[358623563,1745316642304,-883.94,0.00022465,2]
[358623564,1745316642314,-500.0,0.00022465,2]
[358623565,1745316642324,-500.0,0.00022465,2]
[358623566,1745316642335,-500.0,0.00022465,2]
[358623567,1745316642346,-500.0,0.00022465,2]
[358623568,1745316642356,-500.0,0.00022465,2]
[358623569,1745316642366,-500.0,0.00022465,2]
[358623570,1745316642376,-1831.82,0.00022465,2]
[358623571,1745316642386,-571.1,0.00022465,2]
[358623572,1745316642395,-1368.66,0.00022465,2]
[358623573,1745316642409,-500.0,0.00022465,2]
[358623574,1745316642424,-575.84128707,0.00022465,2]
[358623575,1745316642438,-500.0,0.00022465,2]
[358623576,1745316642454,-500.0,0.00022465,2]
[358623577,1745316642468,-500.0,0.00022465,2]
[358623578,1745316642485,-500.0,0.00022465,2]
[358623579,1745316642497,-500.0,0.00022465,2]
[358623580,1745316642508,-500.0,0.00022465,2]
[358623581,1745316642522,-500.0,0.00022465,2]
[358623582,1745316642536,-500.0,0.00022465,2]
[358623583,1745316642548,-500.0,0.00022465,2]
[358623584,1745316642561,-908.54,0.00022465,2]
[358623585,1745316642576,-571.01,0.00022465,2]
[358623586,1745316642590,-500.0,0.00022465,2]
[358623587,1745316642603,-500.0,0.00022465,2]
[358623588,1745316642616,-500.0,0.00022465,2]
[358623589,1745316642628,-500.0,0.00022465,2]
[358623590,1745316642641,-500.0,0.00022465,2]
[358623591,1745316642656,-500.0,0.00022465,2]
[358623592,1745316642668,-11058.94,0.00022465,2]
[358623593,1745316642681,-5894.62,0.00022465,2]
[358623594,1745316642694,-500.0,0.00022465,2]
[358623595,1745316642707,-500.0,0.00022465,2]
[358623596,1745316642721,-524.16,0.00022465,2]
[358623597,1745316642733,-597.28,0.00022465,2]